fUST/lending_fUST_20241213
["ID","MTS","AMOUNT","RATE_DAILY","PERIOD"]
[345220598,1734096645955,-500.0,0.00027671,7]
[345220600,1734096645968,-578.32,0.00027671,7]
[345220603,1734096645980,-4437.37,0.00027671,7]
[345220605,1734096645990,-500.0,0.00027671,7]
[345220607,1734096646002,-500.0,0.00027671,7]
[345220609,1734096646013,-500.0,0.00027671,7]
[345220611,1734096646024,-500.0,0.00027671,7]
[345220614,1734096646036,-947.0,0.00027671,7]
[345220616,1734096646047,-1560.87,0.00027671,7]
[345220618,1734096646059,-575.63,0.00027671,7]
[345220620,1734096646070,-500.0,0.00027671,7]
[345220622,1734096646081,-783.28,0.00027671,7]
[345220625,1734096646092,-123.93903709,0.00027671,7]
[345220653,1734097507284,166.033345,0.00013973,2]
[345220678,1734097835190,-166.033345,0.00026274,2]
[345220679,1734097835200,-373.553,0.0002629,2]
[345220680,1734097835209,-304.630044,0.0002635,2]
[345220682,1734097835219,-300.0,0.00027099,2]
[345220683,1734097835228,-300.0,0.00027099,2]
[345220685,1734097835237,-2312.72179244,0.000271,2]
[345220688,1734097835253,-11687.27820756,0.000271,2]
[345220690,1734097835263,-459.904,0.00027262,15]
[345220691,1734097835273,-293.4999116,0.00027297,2]
[345220692,1734097835283,-300.0,0.000273,13]
[345220693,1734097835293,-500.0,0.00027397,7]
[345220694,1734097835303,-500.0,0.00027397,7]
[345220695,1734097835312,-500.0,0.00027397,7]
[345220696,1734097835322,-500.0,0.00027397,7]
[345220697,1734097835332,-500.0,0.00027397,7]
[345220698,1734097835342,-546.3,0.00027397,7]
[345220699,1734097835353,-500.0,0.00027397,7]
[345220700,1734097835363,-500.0,0.00027397,7]
[345220701,1734097835373,-450.43940306,0.00027397,7]
[345220702,1734097835382,-360.77785244,0.00027397,7]
[345220703,1734097835392,-500.0,0.00027397,7]
[345220704,1734097835401,-500.0,0.00027397,7]
[345220705,1734097835411,-500.0,0.00027397,7]
[345220706,1734097835420,-500.0,0.00027397,7]
[345220707,1734097835430,-500.0,0.00027397,7]
[345220708,1734097835440,-500.0,0.00027397,7]
[345220709,1734097835449,-500.0,0.00027397,7]
[345220710,1734097835459,-500.0,0.00027397,7]
[345220711,1734097835468,-500.0,0.00027397,7]
[345220712,1734097835478,-500.0,0.00027397,7]
[345220713,1734097835488,-576.66,0.00027397,7]
[345220714,1734097835497,-500.0,0.00027397,7]
[345220715,1734097835507,-500.0,0.00027397,7]
[345220716,1734097835517,-1011.49,0.00027397,7]
[345220717,1734097835528,-500.0,0.00027397,7]
[345220718,1734097835538,-500.0,0.00027397,7]
[345220719,1734097835548,-500.0,0.00027397,7]
[345220720,1734097835557,-500.0,0.00027397,7]
[345220721,1734097835567,-500.0,0.00027397,7]
[345220722,1734097835577,-500.0,0.00027397,7]
[345220723,1734097835587,-500.0,0.00027397,7]
[345220724,1734097835598,-500.0,0.00027397,7]
[345220725,1734097835606,-500.0,0.00027397,7]
[345220726,1734097835615,-500.0,0.00027397,7]
[345220727,1734097835624,-500.0,0.00027397,7]
[345220728,1734097835634,-500.0,0.00027397,7]
[345220729,1734097835643,-500.0,0.00027397,7]
[345220730,1734097835652,-500.0,0.00027397,7]
[345220731,1734097835662,-500.0,0.00027397,7]
[345220732,1734097835672,-259.4395613,0.00027397,7]
[345220733,1734097835681,-500.0,0.00027397,7]
[345220734,1734097835691,-500.0,0.00027397,7]
[345220735,1734097835701,-500.0,0.00027397,7]
[345220736,1734097835710,-168.0,0.00027397,7]
[345220737,1734097835720,-521.41,0.00027397,7]
[345220738,1734097835729,-646.11,0.00027397,7]
[345220739,1734097835739,-500.0,0.00027397,7]
[345220740,1734097835748,-500.0,0.00027397,7]
[345220741,1734097835757,-500.0,0.00027397,7]
[345220742,1734097835767,-500.0,0.00027397,7]
[345220743,1734097835776,-500.0,0.00027397,7]
[345220744,1734097835787,-500.0,0.00027397,7]
[345220745,1734097835796,-770.03,0.00027397,7]
[345220746,1734097835806,-658.67,0.00027397,7]
[345220747,1734097835816,-500.0,0.00027397,7]
[345220748,1734097835825,-500.0,0.00027397,7]
[345220749,1734097835839,-500.0,0.00027397,7]
[345220750,1734097835851,-500.0,0.00027397,7]
[345220751,1734097835861,-500.0,0.00027397,7]
[345220752,1734097835870,-500.0,0.00027397,7]
[345220753,1734097835880,-2240.98,0.00027397,7]
[345220754,1734097835890,-500.0,0.00027397,7]
[345220755,1734097835899,-697.6,0.00027397,7]
[345220756,1734097835909,-495.60087929,0.00027397,7]
[345220757,1734097835918,-207.92486489,0.00027397,7]
[345220758,1734097835928,-500.0,0.00027397,7]
[345220759,1734097835937,-500.0,0.00027397,7]
[345220760,1734097835947,-661.75,0.00027397,7]
[345220761,1734097835957,-781.55,0.00027397,7]
[345220762,1734097835967,-778.29,0.00027397,7]
[345220763,1734097835976,-500.0,0.00027397,7]
[345220764,1734097835985,-500.0,0.00027397,7]
[345220765,1734097835995,-500.0,0.00027397,7]
[345220766,1734097836005,-618.46,0.00027397,7]
[345220767,1734097836015,-500.0,0.00027397,7]
[345220768,1734097836024,-533.78,0.00027397,7]
[345220769,1734097836034,-500.0,0.00027397,7]
[345220770,1734097836043,-278.40957742,0.00027397,7]
[345220771,1734097836060,-221.59042258,0.00027397,7]
[345220772,1734097836070,-500.0,0.00027397,7]
[345220773,1734097836079,-500.0,0.00027397,7]
[345220774,1734097836088,-247.68041075,0.00027397,7]
[345220775,1734097836104,-252.31958925,0.00027397,7]
[345220776,1734097836113,-78.95909115,0.00027397,7]
[345220779,1734097838123,-441.475,0.00027275,15]
[345220780,1734097838134,-882.10090885,0.00027397,7]
[345220781,1734097838144,-500.0,0.00027397,7]
[345220782,1734097838158,-704.52,0.00027397,7]
[345220783,1734097838167,-500.0,0.00027397,7]
[345220784,1734097838178,-500.0,0.00027397,7]
[345220785,1734097838187,-500.0,0.00027397,7]
[345220786,1734097838196,-539.47,0.00027397,7]
[345220787,1734097838206,-500.0,0.00027397,7]
[345220788,1734097838215,-500.0,0.00027397,7]
[345220789,1734097838226,-500.0,0.00027397,7]
[345220790,1734097838235,-1221.99,0.00027397,7]
[345220791,1734097838246,-500.0,0.00027397,7]
[345220792,1734097838256,-500.0,0.00027397,7]
[345220793,1734097838266,-557.93127505,0.00027397,7]
[345220794,1734097838276,-868.08,0.00027397,7]
[345220795,1734097838286,-500.0,0.00027397,7]
[345220796,1734097838295,-500.0,0.00027397,7]
[345220797,1734097838305,-500.0,0.00027397,7]
[345220798,1734097838315,-2468.25,0.00027397,7]
[345220799,1734097838325,-500.0,0.00027397,7]
[345220800,1734097838334,-500.0,0.00027397,7]
[345220801,1734097838344,-500.0,0.00027397,7]
[345220802,1734097838356,-500.0,0.00027397,7]
[345220803,1734097838366,-500.0,0.00027397,7]
[345220804,1734097838376,-500.0,0.00027397,7]
[345220805,1734097838386,-500.0,0.00027397,7]
[345220806,1734097838397,-500.0,0.00027397,7]
[345220807,1734097838407,-1057.17,0.00027397,7]
[345220808,1734097838416,-1768.95,0.00027397,7]
[345220809,1734097838426,-1981.8,0.00027397,7]
[345220810,1734097838435,-4067.59,0.00027397,7]
[345220811,1734097838445,-615.84,0.00027397,7]
[345220812,1734097838454,-500.0,0.00027397,7]
[345220813,1734097838464,-500.0,0.00027397,7]
[345220814,1734097838473,-527.66,0.00027397,7]
[345220815,1734097838482,-1430.8,0.00027397,7]
[345220816,1734097838492,-500.0,0.00027397,7]
[345220817,1734097838501,-797.39,0.00027397,7]
[345220818,1734097838510,-500.0,0.00027397,7]
[345220819,1734097838520,-1839.79,0.00027397,7]
[345220820,1734097838530,-267.5207099,0.00027397,7]
[345220821,1734097838539,-530.12,0.00027397,7]
[345220822,1734097838548,-500.0,0.00027397,7]
[345220823,1734097838558,-574.95,0.00027397,7]
[345220824,1734097838567,-500.0,0.00027397,7]
[345220825,1734097838576,-500.0,0.00027397,7]
[345220826,1734097838586,-973.24,0.00027397,7]
[345220827,1734097838595,-500.0,0.00027397,7]
[345220828,1734097838612,-500.0,0.00027397,7]
[345220829,1734097838624,-500.0,0.00027397,7]
[345220830,1734097838634,-500.0,0.00027397,7]
[345220831,1734097838644,-637.2,0.00027397,7]
[345220832,1734097838653,-24507.45,0.00027397,5]
[345220833,1734097838663,-500.0,0.00027397,7]
[345220834,1734097838672,-500.0,0.00027397,7]
[345220835,1734097838682,-718.01,0.00027397,7]
[345220836,1734097838692,-500.0,0.00027397,7]
[345220837,1734097838702,-2098.41,0.00027397,7]
[345220838,1734097838711,-429.66,0.000274,2]
[345220839,1734097838723,-293.4999116,0.00027503,2]
[345220840,1734097838733,-153.0,0.0002753,2]
[345220841,1734097838743,-153.0,0.0002753,2]
[345220842,1734097838752,-465.16263299,0.00027663,2]
[345220843,1734097838762,-500.0,0.00027663,2]
[345220844,1734097838771,-500.0,0.00027663,2]
[345220845,1734097838780,-392.75952133,0.00027663,2]
[345220846,1734097838790,-500.0,0.00027663,2]
[345220847,1734097838800,-500.0,0.00027663,2]
[345220848,1734097838809,-500.0,0.00027663,2]
[345220849,1734097838819,-500.0,0.00027663,2]
[345220850,1734097838828,-500.0,0.00027663,2]
[345220851,1734097838838,-500.0,0.00027663,2]
[345220852,1734097838847,-500.0,0.00027663,2]
[345220853,1734097838859,-500.0,0.00027663,2]
[345220854,1734097838868,-500.0,0.00027663,2]
[345220855,1734097838877,-500.0,0.00027663,2]
[345220856,1734097838887,-500.0,0.00027663,2]
[345220857,1734097838897,-500.0,0.00027663,2]
[345220858,1734097838906,-500.0,0.00027663,2]
[345220859,1734097838915,-500.0,0.00027663,2]
[345220860,1734097838924,-500.0,0.00027663,2]
[345220861,1734097838934,-500.0,0.00027663,2]
[345220862,1734097838943,-500.0,0.00027663,2]
[345220863,1734097838953,-500.0,0.00027663,2]
[345220864,1734097838963,-500.0,0.00027663,2]
[345220865,1734097838972,-500.0,0.00027663,2]
[345220866,1734097838982,-500.0,0.00027663,2]
[345220867,1734097838991,-500.0,0.00027663,2]
[345220868,1734097839000,-500.0,0.00027663,2]
[345220869,1734097839010,-500.0,0.00027663,2]
[345220870,1734097839020,-500.0,0.00027663,2]
[345220871,1734097839029,-500.0,0.00027663,2]
[345220872,1734097839038,-500.0,0.00027663,2]
[345220873,1734097839048,-500.0,0.00027663,2]
[345220874,1734097839058,-500.0,0.00027663,2]
[345220875,1734097839067,-500.0,0.00027663,2]
[345220876,1734097839077,-500.0,0.00027663,2]
[345220877,1734097839086,-500.0,0.00027663,2]
[345220878,1734097839096,-500.0,0.00027663,2]
[345220879,1734097839108,-500.0,0.00027663,2]
[345220880,1734097839118,-500.0,0.00027663,2]
[345220881,1734097839128,-500.0,0.00027663,2]
[345220882,1734097839138,-500.0,0.00027663,2]
[345220883,1734097839151,-500.0,0.00027663,2]
[345220884,1734097839163,-500.0,0.00027663,2]
[345220885,1734097839173,-500.0,0.00027663,2]
[345220886,1734097839183,-500.0,0.00027663,2]
[345220887,1734097839193,-500.0,0.00027663,2]
[345220888,1734097839203,-500.0,0.00027663,2]
[345220889,1734097839212,-500.0,0.00027663,2]
[345220890,1734097839222,-500.0,0.00027663,2]
[345220891,1734097839232,-500.0,0.00027663,2]
[345220892,1734097839242,-500.0,0.00027663,2]
[345220893,1734097839251,-500.0,0.00027663,2]
[345220894,1734097839261,-500.0,0.00027663,2]
[345220895,1734097839271,-347.19215943,0.00027663,2]
[345220896,1734097839280,-215.20221953,0.00027663,2]
[345220897,1734097839290,-211.66517969,0.00027663,2]
[345220898,1734097839300,-500.0,0.00027663,2]
[345220899,1734097839310,-500.0,0.00027663,2]
[345220900,1734097839321,-500.0,0.00027663,2]
[345220901,1734097839331,-500.0,0.00027663,2]
[345220902,1734097839342,-500.0,0.00027663,2]
[345220903,1734097839354,-500.0,0.00027663,2]
[345220904,1734097839365,-500.0,0.00027663,2]
[345220905,1734097839374,-500.0,0.00027663,2]
[345220906,1734097839384,-500.0,0.00027663,2]
[345220907,1734097839546,-500.0,0.00027663,2]
[345220908,1734097839557,-500.0,0.00027663,2]
[345220909,1734097839566,-500.0,0.00027663,2]
[345220910,1734097839577,-500.0,0.00027663,2]
[345220911,1734097839587,-500.0,0.00027663,2]
[345220913,1734097839597,-500.0,0.00027663,2]
[345220914,1734097839609,-500.0,0.00027663,2]
[345220915,1734097839619,-60.27617341,0.00027663,2]
[345220944,1734097840135,-442.4,0.00027275,15]
[345220946,1734097840150,-439.72382659,0.00027663,2]
[345220948,1734097840166,-500.0,0.00027663,2]
[345220950,1734097840176,-500.0,0.00027663,2]
[345220952,1734097840185,-500.0,0.00027663,2]
[345220954,1734097840195,-500.0,0.00027663,2]
[345220956,1734097840205,-500.0,0.00027663,2]
[345220958,1734097840215,-166.92298049,0.00027669,2]
[345220959,1734097840224,-500.0,0.00027671,7]
[345220960,1734097840234,-500.0,0.00027671,7]
[345220961,1734097840244,-500.0,0.00027671,7]
[345220962,1734097840253,-500.0,0.00027671,7]
[345220963,1734097840263,-500.0,0.00027671,7]
[345220964,1734097840272,-546.3,0.00027671,7]
[345220965,1734097840281,-168.46955739,0.00027671,7]
[345221344,1734098572932,159.321526,0.00013973,2]
[345221361,1734099032149,-999.888,0.00025075,2]
[345221364,1734099032229,-525.9142776,0.00025075,2]
[345221366,1734099032239,-159.321526,0.00025156,2]
[345221368,1734099032249,-203.301648,0.00025249,2]
[345221369,1734099032259,-626.725206,0.00025404,2]
[345221371,1734099032268,-1835.3155764,0.00025821,2]
[345221373,1734099032277,-440.680419,0.00025834,2]
[345221376,1734099032287,-300.0,0.00026,2]
[345221379,1734099032297,-300.0,0.00026,2]
[345221382,1734099032307,-648.98034893,0.00026001,2]
[345221938,1734099038133,-6821.793785,0.00026001,2]
[345221941,1734099038146,-1289.1309375,0.00026001,2]
[345221943,1734099038157,-458.4899999,0.00026001,2]
[345221979,1734099040328,-467.52,0.00026001,2]
[345222017,1734099043196,-4711.10875897,0.00026001,2]
[345222019,1734099043293,-740.18824677,0.00026001,2]
[345222020,1734099043305,-610.09079985,0.00026001,2]
[345222030,1734099046143,-7772.3619,0.00026001,2]
[345222031,1734099046156,-222.68576318,0.00026001,2]
[345222032,1734099046166,-172.834823,0.00026143,2]
[345222033,1734099046176,-385.33,0.0002629,2]
[345222034,1734099046187,-157.17066846,0.00026295,2]
[345222035,1734099046198,-660.0,0.00026384,2]
[345222036,1734099046209,-247.93742184,0.00026662,2]
[345222037,1734099046219,-590.93616352,0.00026732,2]
[345222040,1734099448320,168.97209,0.00013973,2]
[345222043,1734099760646,-168.97209,0.00025156,2]
[345222044,1734099760672,-203.301648,0.0002573,2]
[345222045,1734099760700,-4239.85873,0.00025998,2]
[345222046,1734099760726,-3726.99118,0.00026,4]
[345222047,1734099760753,-4215.0,0.00026,7]
[345222048,1734099760782,-220.34021,0.00026085,2]
[345222049,1734099760809,-908.5136788,0.00026123,2]
[345222050,1734099760838,-369.195,0.0002629,2]
[345222051,1734099760862,-300.0,0.00026573,2]
[345222052,1734099760884,-300.0,0.00026573,2]
[345222053,1734099760907,-150.662,0.00026699,2]
[345222054,1734099760934,-533.0,0.00026699,2]
[345222055,1734099760963,-2161.0,0.00026699,2]
[345222056,1734099760991,-2370.0,0.00026699,2]
[345222057,1734099761013,-423.9,0.00026915,15]
[345222058,1734099793982,409.50994,0.00026538,2]
[345222834,1734099981037,500.0,0.00025,60]
[345223091,1734100189749,5609.5248664,0.0002631,2]
[345223107,1734100203182,1199.999999,0.00023,2]
[345223158,1734100232371,-2216.49255112,0.00027145,2]
[345223161,1734100232382,-813.0,0.00027245,15]
[345223163,1734100232392,-176.09994696,0.00027296,2]
[345223165,1734100232402,-300.0,0.000273,13]
[345223167,1734100232412,-300.0,0.00027389,2]
[345223168,1734100232421,-3927.0,0.0002739,7]
[345223169,1734100232430,-500.0,0.00027396,2]
[345223170,1734100232439,-500.0,0.00027396,2]
[345223171,1734100232448,-500.0,0.00027396,2]
[345223173,1734100232459,-500.0,0.00027396,2]
[345223174,1734100232468,-566.25325159,0.00027396,2]
[345223175,1734100232478,-500.0,0.00027396,2]
[345223177,1734100232487,-500.0,0.00027396,2]
[345223179,1734100232497,-500.0,0.00027396,2]
[345223181,1734100232507,-500.0,0.00027396,2]
[345223183,1734100232516,-500.0,0.00027396,2]
[345223185,1734100232525,-500.0,0.00027396,2]
[345223187,1734100232535,-500.0,0.00027396,2]
[345223189,1734100232544,-500.0,0.00027396,2]
[345223191,1734100232554,-500.0,0.00027396,2]
[345223194,1734100232563,-500.0,0.00027396,2]
[345223196,1734100232576,-500.0,0.00027396,2]
[345223197,1734100232585,-500.0,0.00027396,2]
[345223198,1734100232594,-500.0,0.00027396,2]
[345223199,1734100232603,-500.0,0.00027396,2]
[345223200,1734100232612,-500.0,0.00027396,2]
[345223201,1734100232621,-500.0,0.00027396,2]
[345223202,1734100232630,-500.0,0.00027396,2]
[345223203,1734100232639,-500.0,0.00027396,2]
[345223204,1734100232648,-500.0,0.00027396,2]
[345223205,1734100232657,-500.0,0.00027396,2]
[345223206,1734100232667,-500.0,0.00027396,2]
[345223207,1734100232676,-500.0,0.00027396,2]
[345223208,1734100232685,-500.0,0.00027396,2]
[345223209,1734100232695,-500.0,0.00027396,2]
[345223210,1734100232704,-500.0,0.00027396,2]
[345223211,1734100232715,-500.0,0.00027396,2]
[345223212,1734100232724,-500.0,0.00027396,2]
[345223213,1734100232734,-500.0,0.00027396,2]
[345223214,1734100232744,-500.0,0.00027396,2]
[345223215,1734100232754,-500.0,0.00027396,2]
[345223216,1734100232763,-500.0,0.00027396,2]
[345223217,1734100232773,-500.0,0.00027396,2]
[345223218,1734100232783,-278.66255698,0.00027396,2]
[345223219,1734100232793,-500.0,0.00027396,2]
[345223220,1734100232803,-500.0,0.00027396,2]
[345223221,1734100232813,-500.0,0.00027396,2]
[345223222,1734100232826,-500.0,0.00027396,2]
[345223223,1734100232835,-500.0,0.00027396,2]
[345223224,1734100232846,-500.0,0.00027396,2]
[345223225,1734100232855,-500.0,0.00027396,2]
[345223226,1734100232865,-500.0,0.00027396,2]
[345223227,1734100232874,-500.0,0.00027396,2]
[345223228,1734100232884,-500.0,0.00027396,2]
[345223229,1734100232894,-500.0,0.00027396,2]
[345223230,1734100232904,-500.0,0.00027396,2]
[345223231,1734100232914,-516.16650997,0.00027396,2]
[345223232,1734100232924,-500.0,0.00027396,2]
[345223233,1734100232933,-200.12617288,0.00027396,2]
[345223234,1734100232943,-467.6286618,0.00027396,2]
[345223235,1734100232952,-63565.76565841,0.00027396,2]
[345223236,1734100232962,-500.0,0.00027397,7]
[345223237,1734100232972,-556.47,0.00027397,7]
[345223238,1734100232982,-500.0,0.00027397,7]
[345223239,1734100232991,-500.0,0.00027397,7]
[345223240,1734100233001,-500.0,0.00027397,7]
[345223241,1734100233011,-500.0,0.00027397,7]
[345223242,1734100233021,-500.0,0.00027397,7]
[345223243,1734100233031,-500.0,0.00027397,7]
[345223244,1734100233041,-500.0,0.00027397,7]
[345223245,1734100233050,-579.99,0.00027397,7]
[345223246,1734100233060,-500.0,0.00027397,7]
[345223247,1734100233070,-500.0,0.00027397,7]
[345223248,1734100233082,-500.0,0.00027397,7]
[345223249,1734100233092,-500.0,0.00027397,7]
[345223250,1734100233101,-500.0,0.00027397,7]
[345223251,1734100233111,-500.0,0.00027397,7]
[345223252,1734100233124,-500.0,0.00027397,7]
[345223253,1734100233133,-500.0,0.00027397,7]
[345223254,1734100233143,-500.0,0.00027397,7]
[345223255,1734100233153,-969.34,0.00027397,7]
[345223256,1734100233163,-500.0,0.00027397,7]
[345223257,1734100233173,-500.0,0.00027397,7]
[345223258,1734100233183,-500.0,0.00027397,7]
[345223260,1734100233194,-616.51236484,0.00027397,7]
[345223261,1734100233204,-500.0,0.00027397,7]
[345223262,1734100233214,-500.0,0.00027397,7]
[345223263,1734100233224,-500.0,0.00027397,7]
[345223264,1734100233234,-500.0,0.00027397,7]
[345223265,1734100233244,-500.0,0.00027397,7]
[345223266,1734100233253,-500.0,0.00027397,7]
[345223267,1734100233263,-500.0,0.00027397,7]
[345223268,1734100233273,-500.0,0.00027397,7]
[345223269,1734100233283,-500.0,0.00027397,7]
[345223270,1734100233294,-500.0,0.00027397,7]
[345223271,1734100233304,-263.97681268,0.00027397,7]
[345223272,1734100233314,-500.0,0.00027397,7]
[345223273,1734100233326,-500.0,0.00027397,7]
[345223274,1734100233336,-500.0,0.00027397,7]
[345223275,1734100233345,-500.0,0.00027397,7]
[345223276,1734100233358,-500.0,0.00027397,7]
[345223277,1734100233369,-305.99212566,0.00027397,7]
[345223278,1734100233379,-500.0,0.00027397,7]
[345223279,1734100233389,-500.0,0.00027397,7]
[345223280,1734100233400,-500.0,0.00027397,7]
[345223281,1734100233409,-503.57967657,0.00027397,7]
[345223282,1734100233419,-519.64,0.00027397,7]
[345223283,1734100233428,-500.0,0.00027397,7]
[345223284,1734100233439,-168.0,0.00027397,7]
[345223285,1734100233448,-500.0,0.00027397,7]
[345223286,1734100233458,-500.0,0.00027397,7]
[345223287,1734100233468,-500.0,0.00027397,7]
[345223288,1734100233478,-500.0,0.00027397,7]
[345223289,1734100233488,-500.0,0.00027397,7]
[345223290,1734100233497,-500.0,0.00027397,7]
[345223291,1734100233507,-370.48938651,0.00027397,7]
[345223292,1734100233517,-500.0,0.00027397,7]
[345223293,1734100233526,-500.0,0.00027397,7]
[345223294,1734100233536,-500.0,0.00027397,7]
[345223295,1734100233546,-505.68,0.00027397,7]
[345223296,1734100233556,-737.95,0.00027397,7]
[345223297,1734100233565,-649.83,0.00027397,7]
[345223298,1734100233578,-500.0,0.00027397,7]
[345223299,1734100233588,-500.0,0.00027397,7]
[345223300,1734100233597,-500.0,0.00027397,7]
[345223301,1734100233607,-500.0,0.00027397,7]
[345223302,1734100233617,-500.0,0.00027397,7]
[345223303,1734100233626,-500.78,0.00027397,7]
[345223304,1734100233635,-1013.12,0.00027397,7]
[345223305,1734100233645,-534.31,0.00027397,7]
[345223306,1734100233654,-590.18,0.00027397,7]
[345223307,1734100233663,-662.47,0.00027397,7]
[345223308,1734100233673,-500.0,0.00027397,7]
[345223309,1734100233684,-500.0,0.00027397,7]
[345223310,1734100233693,-764.16,0.00027397,7]
[345223311,1734100233703,-500.0,0.00027397,7]
[345223312,1734100233713,-500.0,0.00027397,7]
[345223313,1734100233722,-500.0,0.00027397,7]
[345223314,1734100233732,-508.04,0.00027397,7]
[345223315,1734100233741,-500.0,0.00027397,7]
[345223316,1734100233752,-500.0,0.00027397,7]
[345223317,1734100233761,-516.33,0.00027397,7]
[345223318,1734100233770,-500.0,0.00027397,7]
[345223319,1734100233780,-745.86,0.00027397,7]
[345223320,1734100233790,-500.0,0.00027397,7]
[345223321,1734100233800,-428.74294242,0.00027397,7]
[345223322,1734100233811,-500.0,0.00027397,7]
[345223323,1734100233822,-500.0,0.00027397,7]
[345223324,1734100233837,-500.0,0.00027397,7]
[345223325,1734100233847,-500.0,0.00027397,7]
[345223326,1734100233858,-500.0,0.00027397,7]
[345223327,1734100233868,-500.0,0.00027397,7]
[345223328,1734100233879,-500.0,0.00027397,7]
[345223329,1734100233889,-500.0,0.00027397,7]
[345223330,1734100233899,-668.53,0.00027397,7]
[345223331,1734100233909,-500.0,0.00027397,7]
[345223332,1734100233919,-634.18,0.00027397,7]
[345223333,1734100233929,-500.0,0.00027397,7]
[345223334,1734100233939,-2147.6,0.00027397,7]
[345223335,1734100233948,-511.54,0.00027397,7]
[345223336,1734100233959,-500.0,0.00027397,7]
[345223337,1734100233969,-517.0,0.00027397,7]
[345223338,1734100233979,-500.0,0.00027397,7]
[345223339,1734100233989,-500.0,0.00027397,7]
[345223340,1734100234000,-500.0,0.00027397,7]
[345223341,1734100234009,-748.98,0.00027397,7]
[345223342,1734100234020,-1171.07,0.00027397,7]
[345223343,1734100234029,-500.0,0.00027397,7]
[345223344,1734100234039,-592.7,0.00027397,7]
[345223345,1734100234048,-500.0,0.00027397,7]
[345223346,1734100234057,-2461.2,0.00027397,7]
[345223347,1734100234067,-500.0,0.00027397,7]
[345223348,1734100234083,-500.0,0.00027397,7]
[345223349,1734100234093,-500.0,0.00027397,7]
[345223350,1734100234102,-500.0,0.00027397,7]
[345223351,1734100234112,-3898.11,0.00027397,7]
[345223352,1734100234126,-500.0,0.00027397,7]
[345223353,1734100234135,-921.02,0.00027397,7]
[345223354,1734100234145,-675.17,0.00027397,7]
[345223355,1734100234155,-500.0,0.00027397,7]
[345223356,1734100234164,-500.0,0.00027397,7]
[345223357,1734100234174,-500.0,0.00027397,7]
[345223358,1734100234185,-500.0,0.00027397,7]
[345223359,1734100234196,-500.0,0.00027397,7]
[345223360,1734100234206,-500.0,0.00027397,7]
[345223361,1734100234216,-873.09,0.00027397,7]
[345223362,1734100234226,-1371.19,0.00027397,7]
[345223363,1734100234236,-355.08715267,0.00027397,7]
[345223364,1734100234245,-1899.23,0.00027397,7]
[345223365,1734100234255,-500.0,0.00027397,7]
[345223366,1734100234264,-180.65721818,0.00027397,7]
[345223367,1734100234274,-932.68,0.00027397,7]
[345223368,1734100234283,-500.0,0.00027397,7]
[345223369,1734100234294,-500.0,0.00027397,7]
[345223370,1734100234506,-23486.3,0.00027397,5]